bitfinex-derivatives/quotes_SOLF0:USTF0_20241010
["timestamp","ask_amount","ask_price","bid_price","bid_amount"]
[1728600875266,11.08,138.8,138.79,3.6055]
[1728600875668,14.71284847,138.8,138.73,6.5311]
[1728600875967,14.71284847,138.8,138.74,3.6067]
[1728600875968,11.08,138.75,138.74,3.6067]
[1728600877072,11.08,138.76,138.75,3.6065]
[1728600882359,11.08,138.76,138.73,8.69388]
[1728600882565,11.08,138.74,138.73,3.59388]
[1728600882862,11.08,138.74,138.73,2.16278]
[1728600884466,11.08,138.74,138.73,5.76988]
[1728600885063,8.7059,138.78,138.74,3.6069]
[1728600885261,11.08,138.76,138.73,2.16278]
[1728600885671,11.08,138.76,138.74,3.6066]
[1728600886075,11.08,138.76,138.74,5.76938]
[1728600886274,11.08,138.75,138.74,5.76938]
[1728600886473,3.6058,138.78,138.74,5.76938]
[1728600886876,11.08,138.76,138.74,5.76938]
[1728600890373,11.08,138.76,138.74,3.6066]
[1728600891473,11.08,138.75,138.73,5.76978]
[1728600892274,11.08,138.75,138.73,2.16278]
[1728600893278,11.08,138.75,138.73,5.76978]
[1728600895091,11.08,138.76,138.74,3.6069]
[1728600895280,3.6059,138.78,138.74,5.76968]
[1728600895482,11.08,138.77,138.75,3.6065]
[1728600896188,14.74455091,138.77,138.75,3.6065]
[1728600898584,11.08,138.76,138.75,3.6065]
[1728600902391,11.08,138.76,138.74,2.16278]
[1728600902583,11.08,138.75,138.74,2.16278]
[1728600903486,11.08,138.75,138.74,5.76968]
[1728600905086,3.67419259,138.77,138.74,5.76968]
[1728600905293,11.08,138.76,138.74,5.76968]
[1728600906095,11.08,138.76,138.74,2.16278]
[1728600907393,11.08,138.76,138.74,5.76948]
[1728600908089,3.67419259,138.77,138.74,2.16278]
[1728600908286,11.08,138.77,138.76,3.6064]
[1728600908486,11.08,138.77,138.74,7.26278]
[1728600909290,11.08,138.77,138.75,3.6065]
[1728600910682,11.08,138.77,138.75,5.76928]
[1728600911794,11.08,138.76,138.75,2.16278]
[1728600911988,11.08,138.76,138.74,10.86948]
[1728600912791,11.08,138.76,138.74,7.26278]
[1728600913090,11.08,138.76,138.75,3.6066]
[1728600914195,11.08,138.76,138.74,10.86948]
[1728600914896,11.08,138.75,138.73,6.4528]
[1728600915095,11.08,138.74,138.73,6.4528]
[1728600915295,11.08,138.74,138.73,4.9599]
[1728600916996,11.08,138.74,138.72,5.77008]
[1728600919698,3.56995761,138.76,138.72,2.16278]
[1728600919899,11.08,138.74,138.73,3.6071]
[1728600921302,11.08,138.74,138.73,5.76988]
[1728600921894,11.08,138.75,138.73,2.16278]
[1728600922098,5.1,138.81,138.74,3.6069]
[1728600922099,11.08,138.76,138.74,3.6069]
[1728600922601,11.08,138.76,138.74,5.76968]
[1728600928806,11.08,138.75,138.74,5.76968]
[1728600933404,11.08,138.76,138.74,5.76968]
[1728600936417,11.08,138.76,138.74,3.6069]
[1728600937212,11.08,138.76,138.74,5.76968]
[1728600938816,3.63822641,138.81,138.74,2.16278]
[1728600939012,7.7519,138.82,138.74,2.16278]
[1728600939306,11.08,138.78,138.74,3.46828]
[1728600939703,11.08,138.78,138.77,3.6061]
[1728600940300,11.08,138.78,138.77,5.76888]
[1728600942917,3.67439074,138.8,138.77,2.16278]
[1728600943116,11.08,138.79,138.78,3.6058]
[1728600944019,11.08,138.79,138.78,5.76858]
[1728600947625,11.08,138.79,138.78,3.6058]
[1728600949023,11.08,138.79,138.77,3.606]
[1728600949224,11.08,138.78,138.76,7.26278]
[1728600949424,11.08,138.78,138.76,2.16278]
[1728600949723,11.08,138.77,138.75,8.7066]
[1728600950426,11.08,138.77,138.75,10.86938]
[1728600956334,11.08,138.77,138.75,7.26278]
[1728600956534,11.08,138.77,138.76,3.6064]
[1728600957033,11.08,138.77,138.76,5.76918]
[1728600961641,11.08,138.77,138.76,2.16278]
[1728600961836,11.08,138.77,138.75,3.6065]
[1728600961837,11.08,138.77,138.73,7.26278]
[1728600962038,11.08,138.74,138.73,7.26278]
[1728600962638,11.08,138.74,138.73,10.86978]
[1728600965141,11.08,138.74,138.73,5.76978]
[1728600966638,11.08,138.74,138.73,2.16278]
[1728600969436,11.08,138.74,138.73,5.76988]
[1728600973243,11.08,138.74,138.73,2.16278]
[1728600974144,11.08,138.74,138.71,2.2878]
[1728600974346,5.1,138.77,138.71,2.2878]
[1728600974347,11.08,138.72,138.71,2.2878]
[1728600974647,11.08,138.73,138.71,5.8955]
[1728600976139,3.6068,138.75,138.71,5.8955]
[1728600976339,11.08,138.73,138.71,5.8955]
[1728600982854,11.08,138.72,138.71,2.2878]
[1728600988053,11.08,138.72,138.71,0.12502]
[1728600988753,14.65397649,138.72,138.71,0.12502]
[1728600998368,14.65397649,138.72,138.67,2.16278]
[1728600998557,11.08,138.68,138.65,2.2878]
[1728600998754,11.08,138.66,138.65,2.2878]
[1728601000060,5.1,138.71,138.65,2.2878]
[1728601000360,11.08,138.67,138.65,5.8968]
[1728601000564,11.08,138.67,138.65,2.2878]
[1728601000761,11.08,138.67,138.65,5.8969]
[1728601004770,11.08,138.67,138.66,3.609]
[1728601020281,14.6888,138.67,138.65,2.2878]
[1728601020476,11.08,138.66,138.65,0.12502]
[1728601024190,11.08,138.66,138.65,3.73422]
[1728601026687,3.6086,138.68,138.65,3.73422]
[1728601026888,11.08,138.66,138.65,3.73422]
[1728601027687,3.6086,138.68,138.65,3.73422]
[1728601027886,11.08,138.66,138.65,3.73422]
[1728601030592,11.08,138.66,138.65,0.12502]
[1728601040094,14.689,138.66,138.65,0.12502]
[1728601041189,11.08,138.66,138.65,0.12502]
[1728601041397,3.6088,138.67,138.65,0.12502]
[1728601041592,11.08,138.66,138.65,0.12502]
[1728601043397,14.689,138.66,138.65,0.12502]
[1728601048791,11.08,138.66,138.65,5.897]
[1728601053407,11.08,138.66,138.65,2.2878]
[1728601056605,14.689,138.66,138.65,0.12502]
[1728601068921,11.08,138.66,138.65,0.12502]
[1728601071217,11.08,138.66,138.65,2.2878]
[1728601077620,11.08,138.66,138.65,0.12502]
[1728601078523,14.689,138.66,138.65,0.12502]
[1728601079917,3.6092,138.65,138.62,2.16278]
[1728601080121,5.1,138.67,138.62,2.16278]
[1728601080420,11.08,138.63,138.62,2.16278]
[1728601081923,14.6897,138.63,138.62,2.16278]
[1728601082224,14.6897,138.63,138.61,2.16278]
[1728601082526,11.08,138.62,138.61,2.16278]
[1728601082818,14.69,138.62,138.61,2.16278]
[1728601083326,14.69,138.62,138.59,0.12502]
[1728601083327,3.6105,138.6,138.59,0.12502]
[1728601083548,11.08,138.6,138.59,0.12502]
[1728601085217,5.1,138.64,138.59,3.73572]
[1728601085413,11.08,138.61,138.59,3.73572]
[1728601085619,11.08,138.61,138.59,5.90014]
[1728601087925,11.08,138.6,138.59,5.90014]
[1728601088224,11.08,138.6,138.59,2.28944]
[1728601088627,11.08,138.6,138.59,0.12502]
[1728601089026,11.08,138.6,138.59,3.73582]
[1728601089821,11.08,138.6,138.59,5.90024]
[1728601090727,3.61,138.62,138.59,5.90024]
[1728601091026,11.08,138.6,138.59,5.90024]
[1728601095623,11.08,138.6,138.59,2.28944]
[1728601096531,11.08,138.6,138.59,0.12502]
[1728601099940,14.6905,138.6,138.59,0.12502]
[1728601102029,3.611,138.58,138.57,2.16442]
[1728601102231,3.611,138.58,138.53,0.12502]
[1728601102232,16.18,138.58,138.53,0.12502]
[1728601102430,5.1,138.58,138.53,0.12502]
[1728601102634,11.08,138.54,138.53,2.2903]
[1728601102932,11.08,138.54,138.53,5.9026]
[1728601103127,11.08,138.54,138.53,2.2903]
[1728601103534,3.6117,138.56,138.53,2.2903]
[1728601103726,11.08,138.54,138.53,2.2903]
[1728601104337,11.08,138.54,138.53,0.12502]
[1728601105940,3.612,138.55,138.53,0.12502]
[1728601106129,11.08,138.54,138.53,0.12502]
[1728601108942,11.08,138.54,138.53,3.73732]
[1728601109842,11.08,138.54,138.53,5.9026]
[1728601110440,16.18,138.54,138.47,0.12502]
[1728601110641,11.08,138.48,138.47,3.73872]
[1728601110841,11.08,138.48,138.47,5.9047]
[1728601111255,11.08,138.48,138.47,2.291]
[1728601112556,11.08,138.48,138.47,5.9049]
[1728601113457,11.08,138.51,138.47,2.291]
[1728601113857,2.6133,138.57,138.5,3.613]
[1728601114051,11.08,138.54,138.5,3.613]
[1728601114253,5.1,138.55,138.5,3.613]
[1728601114452,11.08,138.53,138.5,3.613]
[1728601114655,11.08,138.53,138.5,5.77898]
[1728601114849,11.08,138.53,138.51,3.6129]
[1728601115452,11.08,138.53,138.51,5.77888]
[1728601118265,11.08,138.53,138.51,2.16598]
[1728601125669,11.08,138.53,138.51,5.77878]
[1728601128082,11.08,138.52,138.51,5.77878]
[1728601132385,3.6114,138.57,138.53,3.6122]
[1728601132582,11.08,138.55,138.53,3.6122]
[1728601132781,11.08,138.55,138.53,5.77818]
[1728601134283,11.08,138.56,138.53,2.16598]
[1728601134874,11.08,138.56,138.54,3.6118]
[1728601135070,11.08,138.56,138.54,5.77778]
[1728601139382,11.08,138.55,138.54,5.77778]
[1728601139582,11.08,138.55,138.52,2.16598]
[1728601139783,11.08,138.53,138.5,5.1]
[1728601140279,11.08,138.54,138.5,18.34598]
[1728601140581,3.6112,138.58,138.54,3.6119]
[1728601140786,11.08,138.56,138.51,16.18]
[1728601140975,11.08,138.55,138.51,16.18]
[1728601141177,11.08,138.55,138.51,18.34598]
[1728601143392,11.08,138.55,138.53,3.6123]
[1728601143891,11.08,138.55,138.53,5.77828]
[1728601146087,3.59559579,138.56,138.54,3.6121]
[1728601146285,11.08,138.56,138.54,3.6121]
[1728601146885,11.08,138.56,138.54,5.77808]
[1728601147394,11.08,138.55,138.53,5.77818]
[1728601147594,11.08,138.55,138.53,3.6122]
[1728601149490,11.08,138.55,138.53,5.77818]
[1728601153292,11.08,138.55,138.53,2.16598]
[1728601158196,11.08,138.55,138.53,5.77808]
[1728601158791,11.08,138.54,138.53,2.16598]
[1728601159097,11.08,138.54,138.52,2.16598]
[1728601159399,11.08,138.54,138.51,5.77868]
[1728601167200,11.08,138.54,138.51,2.16598]
[1728601167404,11.08,138.54,138.52,3.6124]
[1728601172811,11.08,138.54,138.52,5.77838]
[1728601173011,11.08,138.54,138.53,3.6123]
[1728601173407,11.08,138.55,138.53,3.6123]
[1728601174308,11.08,138.55,138.54,3.6121]
[1728601179610,3.69855417,138.56,138.53,2.16598]
[1728601179810,0.12502,138.59,138.57,3.6111]
[1728601180008,11.20502,138.59,138.57,3.6111]
[1728601182821,0.12502,138.59,138.57,3.6111]
[1728601183023,11.20502,138.59,138.57,5.77708]
[1728601186724,0.12502,138.59,138.57,5.77708]
[1728601190620,0.12502,138.59,138.57,3.6111]
[1728601190621,11.20502,138.59,138.57,3.6111]
[1728601195843,0.12502,138.59,138.56,2.16598]
[1728601196138,0.12502,138.59,138.58,3.611]
[1728601202036,0.12502,138.59,138.58,5.77698]
[1728601202743,0.12502,138.59,138.58,10.85698]
[1728601203944,11.08,138.63,138.6,3.6104]
[1728601204535,11.08,138.64,138.61,3.6101]
[1728601205241,11.08,138.64,138.61,5.77608]
[1728601205441,11.08,138.64,138.62,3.6099]
[1728601205631,3.70992674,138.65,138.62,3.6099]
[1728601205838,14.78992674,138.65,138.62,5.77588]
[1728601207837,14.78992674,138.65,138.63,3.6097]
[1728601209944,14.78992674,138.65,138.62,2.16598]
[1728601210247,11.08,138.63,138.6,2.16598]
[1728601210443,11.08,138.61,138.58,3.60888]
[1728601210653,11.08,138.59,138.57,8.6911]
[1728601211038,11.08,138.59,138.57,5.08]
[1728601211838,11.08,138.59,138.57,7.24598]
[1728601212044,11.08,138.59,138.57,10.85728]
[1728601217343,3.6101,138.62,138.58,3.611]
[1728601217544,11.08,138.61,138.58,11.08]
[1728601217750,11.08,138.63,138.59,11.08]
[1728601218748,11.08,138.63,138.6,3.6104]
[1728601221643,14.6898,138.63,138.6,5.77638]
[1728601221851,11.08,138.62,138.6,5.77638]
[1728601222152,14.6903,138.61,138.58,5.77688]
[1728601223154,11.08,138.61,138.58,5.77688]
[1728601223340,3.70992674,138.65,138.6,11.08]
[1728601223545,3.70992674,138.65,138.61,11.08]
[1728601224550,3.70992674,138.65,138.62,3.6099]
[1728601224749,3.70992674,138.65,138.62,5.77588]
[1728601225854,0.12502,138.65,138.64,3.6095]
[1728601226647,0.12502,138.65,138.64,5.77548]
[1728601242465,0.12502,138.65,138.64,16.85548]
[1728601245963,11.08,138.69,138.64,14.68708]
[1728601246161,11.08,138.69,138.65,11.08]
[1728601246368,11.08,138.69,138.66,5.08]
[1728601247367,14.6883,138.69,138.67,3.6087]
[1728601247664,14.6883,138.69,138.66,7.24598]
[1728601248064,14.6883,138.69,138.66,10.85478]
[1728601249264,3.6083,138.69,138.66,21.93478]
[1728601252569,3.6083,138.69,138.66,5.77478]
[1728601253471,3.66816668,138.71,138.66,16.85478]
[1728601253670,14.6881,138.7,138.66,16.85478]
[1728601254576,3.66816668,138.71,138.66,13.24598]
[1728601254879,18.35596668,138.71,138.68,3.6084]
[1728601255669,18.35596668,138.71,138.68,5.77438]
[1728601255972,0.12502,138.71,138.69,11.08]
[1728601256177,0.12502,138.71,138.69,13.24598]
[1728601257275,0.12502,138.71,138.7,3.6079]
[1728601257478,0.12502,138.71,138.7,5.77388]
[1728601258175,0.12502,138.71,138.7,16.85388]
[1728601260388,11.20502,138.71,138.7,2.16598]
[1728601260679,11.20502,138.71,138.66,1.3877]
[1728601260680,11.20502,138.71,138.67,10.85458]
[1728601260880,11.08,138.7,138.67,10.85458]
[1728601261378,14.688,138.7,138.67,10.85458]
[1728601261781,11.08,138.7,138.67,10.85458]
[1728601268884,14.81282,138.71,138.68,3.6084]
[1728601269896,0.12502,138.71,138.68,13.24598]
[1728601270190,0.12502,138.71,138.69,11.08]
[1728601270590,0.12502,138.71,138.7,8.6879]
[1728601270798,0.12502,138.71,138.7,19.7679]
[1728601270988,0.12502,138.71,138.7,23.35428]
[1728601271791,0.12502,138.77,138.73,3.607]
[1728601271990,11.08,138.76,138.73,3.607]
[1728601272288,11.08,138.76,138.73,5.77298]
[1728601272883,11.08,138.76,138.74,3.6069]
[1728601273287,3.73122,138.77,138.74,2.16598]
[1728601273593,11.08,138.76,138.74,2.16598]
[1728601274189,14.6866,138.75,138.72,2.16598]
[1728601274887,18.37707027,138.74,138.71,5.77348]
[1728601275092,14.687,138.74,138.71,5.77348]
[1728601275690,14.77367738,138.74,138.71,5.77348]
[1728601277690,18.38057738,138.74,138.71,5.77348]
[1728601279098,11.08,138.73,138.71,5.77348]
[1728601284286,11.08,138.73,138.72,3.6074]
[1728601284898,14.77367738,138.74,138.72,3.6074]
[1728601285499,14.77367738,138.74,138.72,5.77338]
[1728601287596,11.08,138.74,138.72,5.77338]
[1728601288003,14.62964895,138.74,138.72,5.77338]
[1728601289700,3.54964895,138.74,138.73,3.6071]
[1728601289898,11.08,138.75,138.73,3.6071]
[1728601290402,3.60339872,138.74,138.73,3.6071]
[1728601291212,0.12502,138.77,138.75,3.6066]
[1728601291611,0.12502,138.77,138.76,3.6064]
[1728601293311,0.12502,138.77,138.76,16.85238]
[1728601295003,0.12502,138.77,138.76,21.93238]
[1728601298914,0.12502,138.77,138.76,10.85238]
[1728601308324,0.12502,138.77,138.76,5.77238]
[1728601308524,11.20502,138.77,138.75,10.0198]
[1728601309226,11.08,138.76,138.74,2.16598]
[1728601310122,11.08,138.76,138.75,3.6066]
[1728601310324,11.08,138.76,138.74,2.16598]
[1728601310723,11.08,138.76,138.74,5.77258]
[1728601311129,11.08,138.76,138.74,2.16598]
[1728601312130,11.08,138.76,138.75,3.6066]
[1728601313828,0.12502,138.77,138.75,3.6066]
[1728601313829,11.20502,138.77,138.75,3.6066]
[1728601315331,0.12502,138.77,138.76,3.6064]
[1728601317037,0.12502,138.77,138.76,5.77238]
[1728601318140,11.20502,138.77,138.76,2.16598]
[1728601325243,0.12502,138.77,138.76,5.77238]
[1728601326744,0.12502,138.77,138.76,3.6064]
[1728601328950,0.12502,138.77,138.76,5.77238]
[1728601335447,0.12502,138.77,138.75,3.6065]
[1728601335651,11.20502,138.77,138.75,3.6065]
[1728601335953,0.12502,138.77,138.75,3.6065]
[1728601336151,0.12502,138.77,138.75,5.77248]
[1728601336855,0.12502,138.77,138.75,2.16598]
[1728601337755,11.20502,138.77,138.72,2.8468]
[1728601338053,11.20502,138.77,138.75,3.6064]
[1728601342653,0.12502,138.77,138.74,2.16598]
[1728601342854,0.12502,138.77,138.76,3.6064]
[1728601343456,0.12502,138.77,138.76,5.77238]
[1728601343850,0.12502,138.77,138.75,3.6065]
[1728601345161,0.12502,138.77,138.74,2.16598]
[1728601347458,0.12502,138.77,138.76,3.6064]
[1728601349862,11.20502,138.77,138.75,3.6065]
[1728601353260,11.20502,138.77,138.72,13.9268]
[1728601353261,11.08,138.76,138.72,1.4088]
[1728601353456,11.08,138.73,138.71,7.24598]
[1728601353764,11.08,138.73,138.71,2.16598]
[1728601354256,11.08,138.73,138.72,3.6074]
[1728601355257,11.08,138.73,138.71,2.16598]
[1728601356552,11.08,138.73,138.71,5.77338]
[1728601358163,11.08,138.73,138.7,8.6878]
[1728601358358,11.08,138.72,138.7,10.85378]
[1728601358756,11.08,138.72,138.7,5.77378]
[1728601362163,11.08,138.72,138.7,2.16598]
[1728601362756,11.08,138.73,138.71,3.6076]
[1728601363359,11.08,138.72,138.7,5.77378]
[1728601363561,11.08,138.71,138.7,2.16598]
[1728601364959,14.75200519,138.72,138.7,2.16598]
[1728601365464,14.75200519,138.72,138.7,5.77388]
[1728601369157,14.75200519,138.72,138.7,2.16598]
[1728601372964,14.75200519,138.72,138.7,5.77388]
[1728601374464,14.75200519,138.72,138.7,2.16598]
[1728601377483,14.75200519,138.72,138.7,5.77388]
[1728601378967,0.12502,138.77,138.71,11.08]
[1728601379167,11.08,138.75,138.71,11.08]
[1728601379567,11.08,138.75,138.71,13.24598]
[1728601379872,11.08,138.75,138.74,3.6069]
[1728601384069,3.6074,138.72,138.69,3.6082]
[1728601384269,11.08,138.7,138.68,2.7004]
[1728601384673,11.08,138.7,138.68,4.86302]
[1728601384872,11.08,138.7,138.68,8.47132]
[1728601386575,11.08,138.69,138.67,5.08]
[1728601386771,11.08,138.69,138.66,2.16262]
[1728601387376,3.54470387,138.72,138.67,11.08]
[1728601387583,11.08,138.72,138.67,14.60472]
[1728601387775,11.08,138.71,138.68,8.6882]
[1728601388078,11.08,138.71,138.68,5.08]
[1728601388377,11.08,138.71,138.68,7.24262]
[1728601389483,11.08,138.71,138.69,3.6082]
[1728601391873,14.76201168,138.72,138.7,3.6078]
[1728601392174,11.08,138.72,138.7,3.6078]
[1728601392482,11.08,138.71,138.7,2.16262]
[1728601393273,11.08,138.71,138.69,3.6081]
[1728601393972,11.08,138.71,138.69,5.77072]
[1728601395886,11.08,138.71,138.69,2.16262]
[1728601396075,14.61634495,138.72,138.7,3.6079]
[1728601398886,14.61634495,138.72,138.7,5.77052]
[1728601405487,3.53634495,138.72,138.7,5.77052]
[1728601405683,0.12502,138.77,138.71,11.08]
[1728601405985,11.08,138.72,138.7,2.16262]
[1728601408288,14.6873,138.73,138.7,5.77052]
[1728601408593,11.08,138.73,138.7,5.77052]
[1728601411896,11.08,138.73,138.7,2.16262]
[1728601412097,3.64675068,138.74,138.7,13.24262]
[1728601412390,11.08,138.74,138.7,13.24262]
[1728601412897,14.61862273,138.74,138.72,3.6074]
[1728601413091,14.61862273,138.74,138.72,5.77002]
[1728601417000,11.08,138.73,138.72,3.6074]
[1728601419400,11.08,138.73,138.7,2.16262]
[1728601419597,11.08,138.71,138.67,8.60472]
[1728601419797,11.08,138.7,138.67,8.60472]
[1728601420098,11.08,138.7,138.68,3.6083]
[1728601421202,11.08,138.7,138.68,2.16262]
[1728601421403,11.08,138.7,138.67,12.21322]
[1728601421602,11.08,138.7,138.67,8.60472]
[1728601422104,11.08,138.7,138.67,12.21332]
[1728601422305,14.6879,138.7,138.67,12.21332]
[1728601423300,11.08,138.69,138.67,2.16262]
[1728601425512,14.6881,138.7,138.67,2.16262]
[1728601431109,14.6881,138.7,138.67,5.77132]
[1728601438719,3.6081,138.7,138.67,5.77132]
[1728601438916,3.68761358,138.71,138.67,2.16262]
[1728601439123,5.08,138.74,138.68,11.08]
[1728601439317,11.08,138.72,138.68,11.08]
[1728601439518,14.66413123,138.72,138.68,13.24262]
[1728601439818,14.66413123,138.72,138.7,3.6079]
[1728601440715,3.58413123,138.72,138.7,3.6079]
[1728601440916,11.08,138.71,138.69,5.77072]
[1728601441719,11.08,138.71,138.7,3.6079]
[1728601442018,11.08,138.71,138.69,2.16262]
[1728601442419,11.08,138.71,138.69,5.77072]
[1728601444215,7.29240061,138.72,138.69,5.77072]
[1728601444425,11.08,138.71,138.69,5.77072]
[1728601446409,7.29240061,138.72,138.69,2.16262]
[1728601446410,11.08,138.7,138.69,2.16262]
[1728601446617,14.6881,138.7,138.68,2.16262]
[1728601446923,11.08,138.69,138.67,1.3562]
[1728601449121,3.6081,138.7,138.67,4.9649]
[1728601449122,14.6881,138.7,138.67,4.9649]
[1728601449522,11.08,138.7,138.67,4.9649]
[1728601449722,11.08,138.7,138.67,7.12752]
[1728601455420,11.08,138.7,138.68,3.6084]
[1728601456625,3.68500061,138.72,138.69,3.608]
[1728601456929,11.08,138.72,138.69,5.77062]
[1728601457334,11.08,138.7,138.68,5.77092]
[1728601458618,11.08,138.69,138.66,2.16262]
[1728601458818,11.08,138.67,138.64,2.16262]
[1728601459024,11.08,138.67,138.58,1.3049]
[1728601459025,11.08,138.65,138.58,6.3849]
[1728601459222,5.08,138.67,138.59,3.73562]
[1728601459223,11.08,138.62,138.59,3.73562]
[1728601459428,14.73144484,138.62,138.59,2.28897]
[1728601459627,14.73144484,138.62,138.59,0.12502]
[1728601460421,11.08,138.61,138.59,0.12502]
[1728601461535,11.08,138.63,138.6,3.6105]
[1728601461734,3.6094,138.65,138.59,11.20502]
[1728601461926,11.08,138.63,138.59,13.36897]
[1728601462127,14.73876883,138.63,138.59,13.36897]
[1728601462332,14.73876883,138.63,138.6,3.6105]
[1728601463125,3.6095,138.64,138.6,5.77445]
[1728601463326,11.08,138.63,138.6,5.77445]
[1728601465230,3.6091,138.66,138.62,3.61]
[1728601465426,11.08,138.65,138.62,3.61]
[1728601465867,11.08,138.65,138.62,5.77395]
[1728601466032,3.6091,138.66,138.62,13.24395]
[1728601466033,11.08,138.66,138.62,13.24395]
[1728601466232,11.08,138.66,138.63,3.6096]
[1728601467439,11.08,138.66,138.63,5.77355]
[1728601467931,55.68595826,138.67,138.63,2.16395]
[1728601468134,8.71084418,138.71,138.65,11.08]
[1728601468333,11.08,138.69,138.65,11.08]
[1728601468840,11.08,138.69,138.65,13.24395]
[1728601469137,0.12502,138.71,138.68,11.08]
[1728601469441,0.12502,138.71,138.69,14.688]
[1728601469740,0.12502,138.71,138.69,3.608]
[1728601469958,0.12502,138.71,138.69,5.77195]
[1728601477840,11.20502,138.71,138.69,5.77195]
[1728601479549,0.12502,138.71,138.69,5.77195]
[1728601479751,0.12502,138.71,138.69,10.85195]
[1728601483243,14.6879,138.7,138.66,7.7459]
[1728601483441,11.08,138.67,138.66,14.96985]
[1728601484143,11.08,138.67,138.66,13.64935]
[1728601484344,11.08,138.68,138.66,13.64935]
[1728601485147,11.08,138.68,138.66,10.04045]
[1728601485448,11.08,138.68,138.67,3.6087]
[1728601486059,11.08,138.68,138.66,10.04045]
[1728601486259,11.08,138.68,138.66,13.64925]
[1728601487258,11.08,138.68,138.67,3.6087]
[1728601488051,3.73282,138.71,138.67,3.6087]
[1728601488052,11.08,138.69,138.67,3.6087]
[1728601492064,11.08,138.69,138.66,13.64925]
[1728601493155,11.08,138.69,138.66,10.04045]
[1728601493357,11.08,138.69,138.67,3.6087]
[1728601493575,0.12502,138.71,138.66,10.04045]
[1728601493765,11.08,138.7,138.66,10.04045]
[1728601493960,11.08,138.7,138.68,3.6083]
[1728601494356,11.08,138.69,138.66,10.04045]
[1728601494558,11.08,138.69,138.67,3.6086]
[1728601499963,0.12502,138.71,138.67,3.6086]
[1728601500157,11.08,138.7,138.67,3.6086]
[1728601500560,11.08,138.7,138.67,5.77255]
[1728601504161,11.08,138.7,138.68,3.6083]
[1728601504963,11.20502,138.71,138.69,3.6079]
[1728601505872,11.20502,138.71,138.67,3.6086]
[1728601506068,11.20502,138.71,138.66,21.12045]
[1728601506862,11.20502,138.71,138.67,3.6086]
[1728601507063,11.20502,138.71,138.66,18.9565]
[1728601507263,11.20502,138.71,138.66,21.12045]
[1728601507560,11.20502,138.71,138.69,3.6081]
[1728601507871,11.20502,138.71,138.69,5.77205]
[1728601509768,11.20502,138.71,138.69,2.16395]
[1728601509969,11.20502,138.71,138.7,3.6079]
[1728601513069,0.12502,138.71,138.7,3.6079]
[1728601516576,3.6067,138.75,138.7,3.6079]
[1728601516577,11.08,138.74,138.7,16.14]
[1728601516781,11.08,138.72,138.7,7.22395]
[1728601517283,11.08,138.72,138.7,10.83165]
[1728601517981,11.08,138.72,138.71,3.6077]
[1728601518484,11.08,138.72,138.7,7.22395]
[1728601518675,11.08,138.71,138.7,7.22395]
[1728601519287,11.08,138.71,138.7,2.16395]